bitfinex-derivatives/quotes_SOLF0:USTF0_20260211
["timestamp","ask_amount","ask_price","bid_price","bid_amount"]
[1770843980592,10.69151619,80.03,79.973,10.57555962]
[1770843980794,10.10063371,80.029,79.956,10.56991432]
[1770843980996,11.2571,80.001,79.956,10.56991432]
[1770843981295,10.10063371,80.007,79.956,10.56991432]
[1770843981696,11.2565,80.006,79.956,10.56991432]
[1770843981894,10.10063371,80.026,79.956,10.56991432]
[1770843982191,10.10063371,80.026,79.938,10.56991432]
[1770843982398,10.10063371,80.02,79.938,10.56991432]
[1770843982598,10.10063371,80.039,79.938,10.56991432]
[1770843983095,11.2554,80.013,79.961,10.56991432]
[1770843983990,11.254,80.023,79.963,10.56991432]
[1770843984694,11.254,80.023,79.967,11.2619]
[1770843984894,11.254,80.023,79.968,10.56991432]
[1770843985703,11.2554,80.014,79.968,10.56991432]
[1770843986204,11.2566,80.005,79.968,10.56991432]
[1770843986503,10.10063371,80.019,79.968,10.56991432]
[1770843986704,10.10063371,80.039,79.968,10.56991432]
[1770843987303,9.94367175,80.019,79.952,110.26991432]
[1770843987503,9.94367175,80.019,79.953,9.96291448]
[1770843988006,10.69151619,80.0,79.953,9.96291448]
[1770843988209,22.5028,80.042,79.953,9.96291448]
[1770843988210,9.94367175,80.019,79.953,9.96291448]
[1770843988600,10.69151619,80.02,79.955,9.96291448]
[1770843988900,9.94367175,80.019,79.955,9.96291448]
[1770843989295,9.94367175,80.019,79.956,9.96291448]
[1770843990710,21.19827175,80.019,79.962,11.2625]
[1770843990901,21.19827175,80.019,79.963,9.96291448]
[1770843991098,9.94367175,80.054,79.963,9.96291448]
[1770843991495,11.2527,80.033,79.979,9.96291448]
[1770843991700,9.94367175,80.051,79.98,10.69151619]
[1770843991903,10.69151619,80.06,79.981,9.96291448]
[1770843992505,9.94367175,80.068,80.014,9.96291448]
[1770843993910,21.19147175,80.068,80.016,9.96291448]
[1770843995104,11.2485,80.062,80.016,9.96291448]
[1770843996406,11.2485,80.062,80.016,21.21781448]
[1770843996911,11.2469,80.074,80.016,9.96291448]
[1770843997310,9.94367175,80.101,80.031,9.96291448]
[1770843998112,9.94367175,80.101,80.049,11.2503]
[1770843998814,11.2433,80.1,80.049,11.2503]
[1770843999008,9.94367175,80.099,80.046,9.96291448]
[1770843999306,9.94367175,80.087,80.032,9.96291448]
[1770844000211,9.94367175,80.084,80.014,9.96291448]
[1770844001103,9.94367175,80.075,80.014,9.96291448]
[1770844001711,9.94367175,80.075,80.027,11.2534]
[1770844001908,9.94367175,80.075,80.028,9.96291448]
[1770844002407,9.94367175,80.072,80.028,9.96291448]
[1770844003614,9.94367175,80.072,80.028,21.21621448]
[1770844005407,9.94367175,80.109,80.04,9.96291448]
[1770844005606,9.94367175,80.125,80.042,9.96291448]
[1770844006012,21.18357175,80.124,80.074,11.2467]
[1770844006216,9.94367175,80.123,80.074,11.2467]
[1770844007120,9.94367175,80.123,80.081,11.2458]
[1770844007326,9.94367175,80.123,80.025,37.53]
[1770844007327,9.94367175,80.111,80.031,9.96291448]
[1770844007619,9.94367175,80.111,80.041,9.96291448]
[1770844008413,10.69151619,80.12,80.068,9.96291448]
[1770844008616,9.94367175,80.127,80.068,9.96291448]
[1770844009120,11.2396,80.126,80.075,11.2467]
[1770844010819,10.69151619,80.14,80.05,10.69151619]
[1770844010820,10.97226784,80.118,80.066,11.2479]
[1770844011414,22.21316784,80.117,80.072,11.247]
[1770844012510,22.21316784,80.117,80.052,10.23551062]
[1770844012711,10.97226784,80.11,80.052,10.23551062]
[1770844014017,10.97226784,80.093,80.047,11.2506]
[1770844014320,10.97226784,80.093,80.036,10.23551062]
[1770844015222,11.2455,80.084,80.043,11.2511]
[1770844015613,10.97226784,80.093,80.043,11.2511]
[1770844015817,22.21766784,80.085,80.036,21.48771062]
[1770844016218,10.97226784,80.085,80.036,10.23551062]
[1770844017020,10.97226784,80.079,79.99,10.69151619]
[1770844017225,11.2509,80.046,79.996,11.2578]
[1770844017414,10.97226784,80.045,79.973,10.23551062]
[1770844017616,10.97226784,80.09,79.973,10.23551062]
[1770844017819,22.21786784,80.084,80.034,11.2524]
[1770844018019,10.97226784,80.083,80.021,10.23551062]
[1770844019726,11.2459,80.082,80.026,11.2536]
[1770844020521,11.2459,80.082,80.033,11.2525]
[1770844021020,10.97226784,80.101,80.026,10.23551062]
[1770844021225,10.97226784,80.118,80.061,10.23551062]
[1770844022223,10.97226784,80.118,80.042,10.23551062]
[1770844022924,10.97226784,80.101,80.042,10.23551062]
[1770844023227,10.97226784,80.119,80.042,10.23551062]
[1770844023822,10.97226784,80.112,80.042,10.23551062]
[1770844024516,11.2428,80.104,80.053,11.2498]
[1770844025818,22.21386784,80.112,80.053,11.2498]
[1770844026028,22.21386784,80.112,80.042,10.23551062]
[1770844026029,22.21386784,80.112,80.06,11.2488]
[1770844026526,10.97226784,80.099,80.035,11.2523]
[1770844026822,10.69151619,80.1,80.035,11.2523]
[1770844026823,10.97226784,80.097,80.035,11.2523]
[1770844027023,10.97226784,80.077,80.019,11.2545]
[1770844027232,10.97226784,80.075,80.004,10.23551062]
[1770844027428,10.69151619,80.08,80.004,10.23551062]
[1770844027429,10.97226784,80.073,80.004,10.23551062]
[1770844028930,10.97226784,80.064,80.004,10.23551062]
[1770844029133,10.97226784,80.064,79.963,37.74595794]
[1770844029134,10.97226784,80.049,79.961,10.23551062]
[1770844029323,10.97226784,80.047,79.961,10.23551062]
[1770844029728,11.2547,80.019,79.963,11.2624]
[1770844029927,11.2547,80.019,79.961,10.23551062]
[1770844030322,11.2556,80.012,79.961,10.23551062]
[1770844033022,10.97226784,80.018,79.964,10.23551062]
[1770844033231,111.16,80.017,79.964,10.23551062]
[1770844034334,11.255,80.016,79.964,21.49781062]
[1770844035326,110.65226784,80.015,79.964,21.49781062]
[1770844037128,11.2554,80.014,79.964,21.49781062]
[1770844037830,111.92,80.013,79.964,21.49781062]
[1770844038933,112.14,80.012,79.972,11.2611]
[1770844039336,112.14,80.012,79.964,10.23551062]
[1770844039737,112.14,80.012,79.967,11.2618]
[1770844040034,112.14,80.012,79.964,10.23551062]
[1770844040432,15.40171429,80.088,79.964,10.23551062]
[1770844040433,10.97226784,80.024,79.964,10.23551062]
[1770844040737,10.25396982,80.022,79.964,10.23551062]
[1770844040935,10.25396982,80.022,79.978,11.2603]
[1770844041535,20.97312281,80.0,79.961,11.2626]
[1770844041728,10.25396982,79.999,79.961,11.2626]
[1770844042936,10.25396982,79.999,79.916,22.5382]
[1770844042937,109.97396982,80.019,79.972,11.2611]
[1770844043534,122.99396982,80.019,79.972,11.2611]
[1770844044434,10.25396982,80.016,79.972,11.2611]
[1770844046340,10.71915299,80.02,79.972,11.25951712]
[1770844046537,174.8597,80.117,79.93,10.71915299]
[1770844046538,10.71915299,80.07,79.987,11.25951712]
[1770844046729,10.71915299,80.07,79.956,175.2098]
[1770844046730,10.71915299,80.07,79.991,11.25951712]
[1770844046934,10.71915299,80.07,80.015,11.25951712]
[1770844048934,10.85126448,80.069,80.015,11.25951712]
[1770844049237,10.85126448,80.068,80.015,11.25951712]
[1770844049838,22.09906448,80.068,80.019,11.2545]
[1770844050034,10.85126448,80.049,79.974,11.09332267]
[1770844050240,10.85126448,80.047,79.974,11.09332267]
[1770844051634,10.85126448,80.045,79.998,11.2575]
[1770844053845,10.85126448,80.042,79.988,11.2589]
[1770844054142,10.85126448,80.04,79.988,11.2589]
[1770844054340,10.85126448,80.022,79.971,11.2613]
[1770844054845,10.85126448,80.022,79.948,11.09332267]
[1770844055050,10.71915299,80.01,79.948,11.09332267]
[1770844055741,10.71915299,80.01,79.963,11.2624]
[1770844055941,10.71915299,80.01,79.948,11.09332267]
[1770844056138,10.85126448,80.009,79.948,11.09332267]
[1770844056342,10.85126448,80.007,79.951,11.2641]
[1770844056945,10.85126448,80.007,79.962,11.2626]
[1770844058843,10.85126448,80.009,79.941,11.09332267]
[1770844059238,10.85126448,79.989,79.925,11.09332267]
[1770844059849,10.85126448,79.989,79.943,11.2653]
[1770844060745,10.85126448,79.969,79.898,11.09332267]
[1770844062742,10.85126448,79.968,79.898,11.09332267]
[1770844063348,11.2621,79.966,79.918,11.2688]
[1770844064254,10.85126448,79.965,79.91,11.2699]
[1770844064751,10.85126448,79.961,79.91,11.2699]
[1770844065747,10.85126448,79.961,79.917,11.2688]
[1770844067852,10.85126448,79.961,79.89,429.13870702]
[1770844067853,10.85126448,79.961,79.905,11.09332267]
[1770844068151,10.71915299,79.99,79.907,11.09332267]
[1770844069148,21.57041747,79.99,79.932,11.09332267]
[1770844069453,10.85126448,79.989,79.932,11.09332267]
[1770844069954,10.71915299,79.99,79.914,11.09332267]
[1770844069955,10.85126448,79.98,79.914,11.09332267]
[1770844070250,10.71915299,79.97,79.914,11.09332267]
[1770844070854,10.71915299,79.97,79.925,11.2678]
[1770844071643,10.71915299,79.97,79.914,11.09332267]
[1770844072250,11.22594853,79.966,79.914,11.09332267]
[1770844072449,10.71915299,79.97,79.89,429.13870702]
[1770844072450,11.22594853,79.949,79.898,11.27240121]
[1770844072645,11.22594853,79.968,79.898,11.27240121]
[1770844073953,11.2621,79.966,79.902,11.27240121]
[1770844074348,11.263,79.96,79.902,11.27240121]
[1770844075155,11.22594853,79.957,79.902,11.27240121]
[1770844075348,10.71915299,79.97,79.902,11.27240121]
[1770844076154,21.94510152,79.97,79.902,11.27240121]
[1770844076354,11.22594853,79.969,79.902,11.27240121]
[1770844076555,11.22594853,79.969,79.895,180.48]
[1770844076556,11.22594853,79.969,79.895,175.75240121]
[1770844076751,11.22594853,79.96,79.895,175.75240121]
[1770844077047,11.22594853,79.975,79.895,175.75240121]
[1770844077259,11.2594,79.985,79.927,11.2675]
[1770844077753,11.22594853,79.984,79.927,11.2675]
[1770844077957,11.26,79.981,79.927,11.2675]
[1770844078453,22.48734853,79.971,79.917,11.2689]
[1770844079448,22.48734853,79.971,79.917,22.54130121]
[1770844079649,22.48734853,79.971,79.92,11.27240121]
[1770844080651,11.22594853,79.986,79.92,11.27240121]
[1770844081752,11.2605,79.977,79.92,11.27240121]
[1770844082858,11.22594853,79.972,79.92,11.27240121]
[1770844083555,11.22594853,79.989,79.926,11.27240121]
[1770844083859,11.22594853,80.009,79.926,11.27240121]
[1770844084550,11.22594853,80.009,79.951,11.27240121]
[1770844085249,11.22594853,80.009,79.966,11.262]
[1770844085848,11.22594853,80.009,79.951,11.27240121]
[1770844086055,11.22594853,80.008,79.959,11.263]
[1770844086658,11.22594853,79.989,79.918,11.27240121]
[1770844087752,10.71915299,79.97,79.903,11.27240121]
[1770844087954,11.22594853,79.969,79.903,11.27240121]
[1770844088154,37.53,79.962,79.903,11.27240121]
[1770844088359,11.22594853,79.961,79.884,11.27240121]
[1770844088758,11.22594853,79.952,79.902,11.2709]
[1770844088956,11.22594853,79.967,79.903,11.27240121]
[1770844089761,11.22594853,79.967,79.913,11.2694]
[1770844090264,11.22594853,79.967,79.903,11.27240121]
[1770844090466,11.22594853,79.967,79.922,11.2682]
[1770844091773,11.22594853,79.984,79.922,11.27240121]
[1770844092759,11.22594853,79.984,79.937,11.2661]
[1770844093365,11.22594853,79.981,79.922,11.27240121]
[1770844094166,11.22594853,79.981,79.936,11.2662]
[1770844094562,11.22594853,79.981,79.945,11.265]
[1770844094865,11.22594853,79.981,79.922,11.27240121]
[1770844095868,11.22594853,79.981,79.938,11.266]
[1770844099464,11.22594853,79.981,79.95,11.2642]
[1770844099761,11.22594853,79.981,79.922,11.27240121]
[1770844099956,11.22594853,79.981,79.941,11.2654]
[1770844100160,11.22594853,79.981,79.937,11.27240121]
[1770844101265,11.52674848,80.012,79.966,10.89607682]
[1770844101469,11.56187419,80.022,79.966,10.89607682]
[1770844101766,11.56187419,80.022,79.985,11.2593]
[1770844101963,11.56187419,80.039,79.966,10.89607682]
[1770844102759,11.56187419,80.032,79.992,11.2583]
[1770844103562,11.56187419,80.025,79.98,11.26]
[1770844106065,11.56187419,80.023,79.949,142.46]
[1770844106269,11.56187419,80.039,79.964,10.89607682]
[1770844107673,11.56187419,80.039,80.004,11.2567]
[1770844109376,11.56187419,80.039,79.996,11.2577]
[1770844109576,11.56187419,80.039,79.989,10.61620262]
[1770844110873,11.56187419,80.039,80.002,11.2569]
[1770844111274,10.57240681,80.038,79.995,11.2579]
[1770844111774,10.57240681,80.038,79.975,10.61620262]
[1770844113580,10.57240681,80.035,79.979,11.2601]
[1770844113774,10.57240681,80.035,79.98,10.61620262]
[1770844114575,10.57240681,80.055,80.0,10.61620262]
[1770844115871,10.57240681,80.053,80.001,11.2571]
[1770844116870,10.57240681,80.049,80.001,11.2571]
[1770844117478,10.57240681,80.046,80.001,11.2571]
[1770844118479,10.57240681,80.046,80.006,11.2563]
[1770844119179,10.57240681,80.046,80.0,10.61620262]
[1770844119180,10.57240681,80.046,80.011,11.2556]
[1770844122779,10.57240681,80.059,80.0,10.61620262]
[1770844123772,10.57240681,80.059,80.005,10.61620262]
[1770844125579,21.30116083,80.07,80.009,10.61620262]
[1770844125792,10.57240681,80.07,80.009,10.61620262]
[1770844126784,10.57240681,80.07,80.013,10.61620262]
[1770844127790,10.57240681,80.07,80.014,11.2552]
[1770844127982,10.57240681,80.07,80.015,10.61620262]
[1770844129587,10.57240681,80.07,80.016,11.2549]
[1770844129789,10.57240681,80.07,80.017,10.61620262]
[1770844130192,10.57240681,80.085,80.017,10.61620262]
[1770844130590,10.57240681,80.085,80.028,11.43741972]
[1770844130985,3.9946453,80.08,80.031,11.43741972]
[1770844131388,3.9946453,80.07,80.031,11.43741972]
[1770844132094,10.94492634,80.079,80.031,11.43741972]
[1770844133084,10.94492634,80.079,80.032,11.43741972]
[1770844134297,3.9946453,80.07,80.032,11.43741972]
[1770844134882,3.9946453,80.07,80.035,11.2523]
[1770844135087,3.9946453,80.05,80.016,11.43741972]
[1770844135688,3.9946453,80.06,80.016,11.43741972]
[1770844135889,22.4835,80.111,79.996,22.5155]
[1770844135890,3.9946453,80.08,80.021,11.43741972]
[1770844136093,10.94492634,80.099,80.041,11.43741972]
[1770844136395,3.9946453,80.07,80.041,11.43741972]
[1770844136584,3.9946453,80.08,80.041,11.43741972]
[1770844137088,3.9946453,80.08,80.042,11.2513]
[1770844137499,3.9946453,80.07,80.041,11.43741972]
[1770844137689,3.9946453,80.07,80.021,11.43741972]
[1770844138595,3.9946453,80.07,80.037,11.252]
[1770844140197,3.9946453,80.08,80.047,11.2506]
[1770844140387,10.94492634,80.086,80.047,11.2506]
[1770844140590,10.94492634,80.086,80.037,11.43741972]
[1770844140890,3.9946453,80.09,80.049,11.43741972]
[1770844141091,3.9946453,80.1,80.051,11.43741972]
[1770844141986,3.9946453,80.11,80.071,11.2472]
[1770844142585,3.9946453,80.11,80.078,11.2463]
[1770844142988,10.94492634,80.115,80.078,11.2463]
[1770844143192,10.94492634,80.115,80.084,11.2454]
[1770844143697,10.94492634,80.115,80.041,11.43741972]
[1770844143898,10.94492634,80.109,80.062,11.2485]
[1770844144095,10.94492634,80.109,80.027,99.68]
[1770844144096,37.53,80.108,80.027,11.43741972]
[1770844144287,10.94492634,80.089,80.027,11.43741972]
[1770844144595,10.94492634,80.089,80.04,11.43741972]
[1770844145293,10.94492634,80.089,80.05,11.2501]
[1770844146199,10.94492634,80.089,80.06,11.2488]
[1770844146402,10.94492634,80.089,80.04,11.43741972]
[1770844146792,10.94492634,80.089,80.053,11.2498]
[1770844146987,10.94492634,80.089,80.04,11.43741972]
[1770844146988,21.63653712,80.11,80.04,11.43741972]
[1770844147187,10.94492634,80.109,80.04,11.43741972]
[1770844148096,10.94492634,80.109,80.06,11.2487]
[1770844150100,11.2421,80.108,80.06,11.2487]
[1770844150304,10.94492634,80.107,80.06,11.2487]
[1770844150700,11.2434,80.099,80.049,11.2502]
[1770844151004,10.94492634,80.098,80.049,11.2502]
[1770844151198,10.94492634,80.098,80.056,11.2492]
[1770844151399,10.69161078,80.11,80.053,11.43741972]
[1770844151599,10.94492634,80.109,80.053,11.43741972]
[1770844152807,10.94492634,80.109,80.076,11.2465]
[1770844153199,10.69161078,80.13,80.048,178.86]
[1770844153200,10.94492634,80.126,80.083,11.2455]
[1770844154400,10.94492634,80.123,80.083,11.2455]
[1770844155400,10.94492634,80.123,80.089,11.2447]
[1770844156902,10.94492634,80.123,80.096,11.2437]
[1770844158808,37.53,80.139,80.096,11.2437]
[1770844158809,10.94492634,80.138,80.096,11.2437]
[1770844159608,10.94492634,80.138,80.081,22.68311972]
[1770844159911,10.94492634,80.138,80.082,11.43741972]
[1770844160311,11.2381,80.137,80.082,11.43741972]
[1770844160607,10.8173879,80.129,80.07,11.2473]
[1770844160811,10.8173879,80.129,80.07,22.03566375]
[1770844161311,10.8173879,80.129,80.071,10.78836375]
[1770844161506,10.8173879,80.129,80.085,10.78836375]
[1770844162114,10.8173879,80.146,80.1,10.78836375]
[1770844162513,0.07867227,80.115,80.1,10.78836375]
[1770844162704,10.8173879,80.146,80.102,11.2428]
[1770844162905,118.54,80.17,80.1,10.78836375]
[1770844162906,10.8173879,80.139,80.1,10.78836375]
[1770844163304,3.98871905,80.15,80.103,10.78836375]
[1770844164512,14.80610695,80.15,80.103,10.78836375]
[1770844164808,14.80610695,80.15,80.055,52.69327881]
[1770844164809,3.98871905,80.13,80.091,10.78836375]
[1770844165514,10.8173879,80.133,80.091,10.78836375]
[1770844166013,3.98871905,80.14,80.094,10.78836375]
[1770844166607,14.80610695,80.14,80.097,11.2435]
[1770844168507,14.80610695,80.14,80.103,11.2427]
[1770844170413,3.98871905,80.14,80.106,22.19737881]
[1770844171416,11.49569033,80.139,80.099,11.2432]
[1770844171711,118.38,80.162,80.099,11.2432]
[1770844171712,11.49569033,80.159,80.111,10.95507881]
[1770844172813,11.49569033,80.159,80.125,11.2397]
[1770844173610,3.98871905,80.14,80.095,10.95507881]
[1770844173815,11.49569033,80.159,80.111,10.95507881]
[1770844174814,11.49569033,80.159,80.118,11.2406]
[1770844175320,3.98871905,80.14,80.097,10.95507881]
[1770844176515,11.49569033,80.149,80.108,11.242]
[1770844179320,3.98871905,80.14,80.108,11.242]
[1770844180024,11.49569033,80.16,80.116,10.95507881]
[1770844180323,3.98871905,80.14,80.101,10.95507881]
[1770844181420,11.49569033,80.149,80.111,22.19667881]
[1770844181626,11.49569033,80.149,80.111,10.95507881]
[1770844182718,11.49569033,80.149,80.117,11.2408]
[1770844183119,11.49569033,80.149,80.111,10.95507881]
[1770844183120,11.49569033,80.149,80.098,10.95507881]
[1770844183315,11.49569033,80.166,80.116,10.95507881]
[1770844183520,3.98871905,80.16,80.116,10.95507881]
[1770844183723,15.48440938,80.18,80.121,10.95507881]
[1770844184320,11.49569033,80.217,80.151,10.95507881]
[1770844184522,3.98871905,80.21,80.16,3.98871905]
[1770844184722,3.98871905,80.21,80.161,10.95507881]
[1770844185029,3.98871905,80.2,80.166,11.2339]
[1770844185230,3.98871905,80.21,80.166,11.2339]
[1770844185625,3.98871905,80.21,80.173,11.2329]
[1770844185929,3.98871905,80.2,80.161,10.95507881]
[1770844186125,3.98871905,80.19,80.164,11.2342]
[1770844186338,3.98871905,80.2,80.164,11.2342]
[1770844186524,3.98871905,80.19,80.147,10.95507881]
[1770844186722,3.98871905,80.17,80.128,10.95507881]
[1770844186921,3.98871905,80.16,80.102,105.94]
[1770844187222,3.98871905,80.15,80.117,11.2408]
[1770844188824,10.68216461,80.16,80.11,11.2418]
[1770844189027,11.49569033,80.159,80.11,11.2418]
[1770844190925,11.49569033,80.159,80.114,11.2411]
[1770844191224,11.2353,80.157,80.111,11.65545458]
[1770844191424,11.51168879,80.156,80.097,11.65545458]
[1770844192731,11.51168879,80.156,80.115,11.65545458]
[1770844193730,11.51168879,80.173,80.119,11.65545458]
[1770844194037,11.51168879,80.159,80.085,11.65545458]
[1770844194328,11.51168879,80.159,80.107,11.65545458]
[1770844194737,22.25934982,80.22,80.107,11.65545458]
[1770844194738,11.51168879,80.173,80.107,11.65545458]
[1770844195530,11.51168879,80.173,80.117,11.2407]
[1770844195733,11.51168879,80.159,80.07,15.16327881]
[1770844195935,11.51168879,80.159,80.081,11.65545458]
[1770844196136,11.51168879,80.159,80.105,11.65545458]
[1770844197841,11.51168879,80.159,80.118,11.2406]
[1770844199338,11.51168879,80.159,80.105,11.65545458]
[1770844199841,10.68216461,80.16,80.105,11.65545458]
[1770844200041,10.68216461,80.16,80.129,11.239]
[1770844201443,10.68216461,80.17,80.135,11.2382]
[1770844201636,22.1938534,80.17,80.135,11.2382]
[1770844201943,11.51168879,80.169,80.119,11.65545458]
[1770844202342,11.51168879,80.169,80.144,0.07896488]
[1770844202541,11.51168879,80.169,80.128,11.2393]
[1770844202840,11.51168879,80.169,80.119,11.65545458]
[1770844203038,11.51168879,80.149,80.108,11.242]
[1770844203833,11.51168879,80.147,80.098,11.2434]
[1770844204039,11.51168879,80.129,80.061,11.65545458]
[1770844204540,10.68216461,80.11,80.061,11.65545458]
[1770844204938,10.68216461,80.09,80.032,11.65545458]
[1770844205647,10.68216461,80.09,80.047,11.65545458]
[1770844206746,11.51168879,80.108,80.047,11.65545458]
[1770844206942,11.51168879,80.149,80.047,11.65545458]
[1770844207333,11.51168879,80.133,80.079,11.65545458]
[1770844207952,11.51168879,80.127,80.079,11.65545458]
[1770844208648,11.2397,80.126,80.079,11.65545458]
[1770844208853,11.51168879,80.125,80.079,11.65545458]
[1770844209041,11.51168879,80.14,80.079,11.65545458]
[1770844209350,10.68216461,80.17,80.104,11.65545458]
[1770844209544,11.51168879,80.169,80.104,11.65545458]
[1770844209744,10.68216461,80.17,80.107,11.65545458]
[1770844209745,11.51168879,80.162,80.107,11.65545458]
[1770844210338,11.51168879,80.162,80.108,11.65545458]
[1770844210339,11.2347,80.161,80.108,11.65545458]
[1770844210543,11.51168879,80.16,80.108,11.65545458]
[1770844211043,11.51168879,80.16,80.081,11.65545458]
[1770844211350,11.51168879,80.16,80.109,11.2418]
[1770844211548,11.51168879,80.16,80.097,11.65545458]
[1770844211751,11.51168879,80.149,80.097,11.65545458]
[1770844212046,11.51168879,80.149,80.107,11.2421]
[1770844212244,11.51168879,80.17,80.108,11.65545458]
[1770844213750,11.51168879,80.17,80.126,11.2395]
[1770844216250,11.51168879,80.159,80.085,11.65545458]
[1770844216847,11.51168879,80.159,80.107,11.2422]
[1770844217049,11.51168879,80.18,80.108,11.65545458]
[1770844217349,11.51168879,80.199,80.109,11.65545458]
[1770844217750,22.74158879,80.195,80.141,11.2373]
[1770844217951,11.51168879,80.195,80.142,11.65545458]
[1770844218650,11.2288,80.203,80.153,11.65545458]
[1770844219251,11.51168879,80.199,80.144,11.237]
[1770844219651,11.51168879,80.199,80.137,11.65545458]
[1770844220854,11.51168879,80.199,80.13,10.67883297]
[1770844220855,11.2295,80.198,80.141,11.16688234]
[1770844223754,11.2305,80.191,80.141,11.16688234]
[1770844225747,11.51168879,80.199,80.141,11.16688234]
[1770844226954,11.51168879,80.199,80.146,11.2367]
[1770844227450,11.51168879,80.199,80.146,23.17077683]
[1770844228057,11.51168879,80.199,80.149,11.2363]
[1770844229863,11.51168879,80.199,80.155,11.2354]
[1770844230960,11.51168879,80.199,80.147,11.93407683]
[1770844230961,11.54431714,80.212,80.167,11.2338]
[1770844232055,11.54431714,80.212,80.175,11.2326]
[1770844232257,11.54431714,80.226,80.176,11.93407683]
[1770844233056,11.54431714,80.226,80.188,11.2309]
[1770844235162,37.53,80.251,80.197,11.93407683]
[1770844235357,11.54431714,80.261,80.197,11.93407683]
[1770844235563,10.67883297,80.25,80.197,11.93407683]
[1770844235754,10.67883297,80.25,80.137,212.3441]
[1770844235755,11.54431714,80.249,80.171,11.93407683]
[1770844236468,4.11343654,80.262,80.171,11.93407683]
[1770844236664,4.11343654,80.262,80.229,11.225]
[1770844237458,4.11343654,80.262,80.23,11.93407683]
[1770844238261,4.11343654,80.262,80.19,10.67883297]
[1770844238262,11.54431714,80.261,80.197,11.93407683]
[1770844238772,4.11343654,80.262,80.202,11.93407683]
[1770844240469,4.11343654,80.262,80.184,173.62]
[1770844240470,11.54431714,80.261,80.184,11.93407683]
[1770844240678,11.54431714,80.229,80.176,439.39931517]
[1770844241173,11.54431714,80.229,80.169,11.93407683]
[1770844241375,11.54431714,80.229,80.068,30.32655762]
[1770844241376,10.67883297,80.21,80.153,11.93407683]
[1770844241575,11.54431714,80.209,80.153,11.93407683]
[1770844242369,11.54431714,80.193,80.129,11.93407683]
[1770844242571,11.54431714,80.189,80.091,11.93407683]
[1770844242769,11.54431714,80.189,80.093,11.93407683]
[1770844243278,11.54431714,80.169,80.11,11.93407683]
[1770844244871,11.54431714,80.185,80.111,11.93407683]
[1770844245569,0.07885852,80.156,80.111,11.93407683]
[1770844245882,11.54431714,80.185,80.122,11.93407683]
[1770844248477,11.54431714,80.201,80.122,11.93407683]
[1770844249176,11.54431714,80.201,80.14,11.2376]
[1770844249381,11.54431714,80.201,80.141,11.93407683]
[1770844249778,11.54431714,80.198,80.141,11.93407683]
[1770844251883,10.67883297,80.21,80.162,11.32929875]
[1770844252379,11.19554197,80.209,80.131,11.32929875]
[1770844252972,11.19554197,80.202,80.141,11.32929875]
[1770844253795,22.42504197,80.199,80.163,0.07907069]
[1770844254689,11.19554197,80.198,80.163,0.07907069]
[1770844254886,11.19554197,80.189,80.118,129.78]
[1770844255085,11.19554197,80.232,80.119,11.32929875]
[1770844255289,11.19554197,80.209,80.119,11.32929875]
[1770844255690,11.19554197,80.196,80.132,11.2387]
[1770844256299,11.19554197,80.189,80.132,11.2387]
[1770844256991,11.19554197,80.189,80.132,22.56799875]
[1770844257191,11.19554197,80.189,80.136,11.2381]
[1770844257397,11.19554197,80.189,80.137,11.32929875]
[1770844257598,11.19554197,80.189,80.146,11.2367]
[1770844257799,11.19554197,80.189,80.137,11.32929875]
[1770844258395,11.19554197,80.189,80.111,11.32929875]
[1770844258600,11.19554197,80.189,80.112,11.32929875]
[1770844258893,11.19554197,80.189,80.114,11.32929875]
[1770844259695,11.19554197,80.189,80.135,11.2383]
[1770844259900,11.19554197,80.189,80.135,22.56759875]
[1770844260093,11.19554197,80.189,80.136,11.32929875]
[1770844260890,11.19554197,80.189,80.137,11.2379]
[1770844261195,11.19554197,80.188,80.114,11.32929875]
[1770844261404,11.19554197,80.179,80.114,11.32929875]
[1770844261590,11.19554197,80.179,80.119,11.2405]
[1770844262097,21.87437494,80.16,80.101,11.32929875]
[1770844262292,21.87437494,80.16,80.107,11.2421]
[1770844262493,11.19554197,80.177,80.108,11.32929875]
[1770844263196,11.19554197,80.175,80.115,11.241]
[1770844263794,11.19554197,80.171,80.122,11.2401]
[1770844265601,11.19554197,80.154,80.091,11.32929875]
[1770844265798,0.07900751,80.155,80.091,11.32929875]
[1770844265997,11.19554197,80.209,80.14,11.32929875]
[1770844266591,11.19554197,80.242,80.161,11.32929875]
[1770844267097,11.19554197,80.242,80.184,11.32929875]
[1770844269209,11.19554197,80.242,80.205,0.0787118]
[1770844270405,11.19554197,80.237,80.205,0.0787118]
[1770844270597,11.19554197,80.237,80.17,11.32929875]
[1770844271802,11.2241,80.236,80.17,11.32929875]
[1770844272003,11.19554197,80.235,80.17,11.32929875]
[1770844274708,11.19554197,80.235,80.171,11.2332]
[1770844274907,11.19554197,80.235,80.17,11.32929875]